[Event "Titled Tuesday Blitz December 06 Late 2022"]
[White "Kravtsiv, Martyn"]
[Black "Rosenthal, Nicholas"]
[WhiteFideId "14113147"]
[BlackFideId "2045150"]
[WhiteElo "2695"]
[BlackElo "2182"]
[Result "0-1"]
[Round "07"]
[TimeControl "180+1"]
[Date "2022.12.06"]
[WhiteClock "0:00:05"]
[BlackClock "0:00:06"]

1. e4 {[%clk 0:03:00]}  e6 {[%clk 0:02:59]} 2. d4 {[%clk 0:02:59]}  d5 {[%clk 0:02:59]} 3. e5 {[%clk 0:03:00]}  c5 {[%clk 0:02:55]} 4. c3 {[%clk 0:03:01]}  Nc6 {[%clk 0:02:48]} 5. Nf3 {[%clk 0:03:01]}  Bd7 {[%clk 0:02:48]} 6. a3 {[%clk 0:02:52]}  c4 {[%clk 0:02:46]} 7. g3 {[%clk 0:02:50]}  Na5 {[%clk 0:02:45]} 8. Nbd2 {[%clk 0:02:49]}  Ne7 {[%clk 0:02:45]} 9. h4 {[%clk 0:02:48]}  Nc8 {[%clk 0:02:43]} 10. Bh3 {[%clk 0:02:41]}  Nb6 {[%clk 0:02:43]} 11. O-O {[%clk 0:02:41]}  g6 {[%clk 0:02:42]} 12. Qe2 {[%clk 0:02:36]}  Be7 {[%clk 0:02:40]} 13. Rb1 {[%clk 0:02:32]}  Qc7 {[%clk 0:02:36]} 14. Re1 {[%clk 0:02:31]}  O-O-O {[%clk 0:02:35]} 15. Nf1 {[%clk 0:02:30]}  Nb3 {[%clk 0:02:34]} 16. Bh6 {[%clk 0:02:29]}  Kb8 {[%clk 0:02:32]} 17. Ng5 {[%clk 0:02:28]}  Bxg5 {[%clk 0:02:30]} 18. Bxg5 {[%clk 0:02:25]}  Rde8 {[%clk 0:02:30]} 19. Ne3 {[%clk 0:02:21]}  h5 {[%clk 0:02:26]} 20. Ng2 {[%clk 0:02:15]}  Na4 {[%clk 0:02:20]} 21. Nf4 {[%clk 0:02:14]}  b5 {[%clk 0:02:17]} 22. Bg2 {[%clk 0:02:14]}  Bc6 {[%clk 0:02:15]} 23. Nh3 {[%clk 0:02:11]}  a5 {[%clk 0:02:10]} 24. Bf6 {[%clk 0:02:07]}  Rhg8 {[%clk 0:02:09]} 25. Ng5 {[%clk 0:02:07]}  Ka7 {[%clk 0:02:07]} 26. g4 {[%clk 0:02:04]}  hxg4 {[%clk 0:02:05]} 27. Qxg4 {[%clk 0:02:05]}  b4 {[%clk 0:02:03]} 28. axb4 {[%clk 0:02:04]}  axb4 {[%clk 0:02:04]} 29. Re3 {[%clk 0:01:56]}  bxc3 {[%clk 0:02:02]} 30. bxc3 {[%clk 0:01:55]}  Rb8 {[%clk 0:02:00]} 31. Kh2 {[%clk 0:01:39]}  Rb7 {[%clk 0:01:53]} 32. Rh3 {[%clk 0:01:37]}  Qa5 {[%clk 0:01:51]} 33. Nxe6 {[%clk 0:01:20]}  fxe6 {[%clk 0:01:50]} 34. Qxe6 {[%clk 0:01:21]}  Bd7 {[%clk 0:01:36]} 35. Qxg8 {[%clk 0:01:18]}  Bxh3 {[%clk 0:01:36]} 36. Bxh3 {[%clk 0:01:16]}  Qxc3 {[%clk 0:01:34]} 37. Qxd5 {[%clk 0:01:11]}  Qd3 {[%clk 0:01:13]} 38. Bg2 {[%clk 0:01:08]}  Rb8 {[%clk 0:01:07]} 39. Qd7+ {[%clk 0:01:03]}  Kb6 {[%clk 0:01:06]} 40. Qxa4 {[%clk 0:00:51]}  Qxb1 {[%clk 0:01:04]} 41. Qxc4 {[%clk 0:00:52]}  Na5 {[%clk 0:00:53]} 42. Qe6+ {[%clk 0:00:41]}  Kb5 {[%clk 0:00:49]} 43. Qd7+ {[%clk 0:00:39]}  Kb4 {[%clk 0:00:46]} 44. Be7+ {[%clk 0:00:38]}  Kc3 {[%clk 0:00:46]} 45. Qc7+ {[%clk 0:00:36]}  Nc4 {[%clk 0:00:47]} 46. Bg5 {[%clk 0:00:23]}  Rb2 {[%clk 0:00:37]} 47. Qf7 {[%clk 0:00:17]}  Qe1 {[%clk 0:00:23]} 48. Qf3+ {[%clk 0:00:15]}  Kxd4 {[%clk 0:00:21]} 49. Qd5+ {[%clk 0:00:14]}  Kc3 {[%clk 0:00:21]} 50. Qf3+ {[%clk 0:00:14]}  Kd4 {[%clk 0:00:21]} 51. e6 {[%clk 0:00:13]}  Rxf2 {[%clk 0:00:20]} 52. Bf6+ {[%clk 0:00:14]}  Kc5 {[%clk 0:00:19]} 53. Qd5+ {[%clk 0:00:13]}  Kb4 {[%clk 0:00:19]} 54. e7 {[%clk 0:00:13]}  Rxf6 {[%clk 0:00:15]} 55. Qd7 {[%clk 0:00:08]}  Qxh4+ {[%clk 0:00:15]} 56. Kg1 {[%clk 0:00:07]}  Qf2+ {[%clk 0:00:14]} 57. Kh2 {[%clk 0:00:07]}  Qh4+ {[%clk 0:00:06]} 58. Kg1 {[%clk 0:00:05]}  Qe1+ {[%clk 0:00:05]} 59. Kh2 {[%clk 0:00:05]}  Re6 {[%clk 0:00:05]} 60. Qb7+ {[%clk 0:00:04]}  Kc3 {[%clk 0:00:05]} 61. Qf3+ {[%clk 0:00:05]}  Qe3 {[%clk 0:00:06]} 0-1


[Site "https://www.chess.com"]

[Event "Titled Tuesday Blitz December 06 Late 2022"]
[White "Martinez Reyes, Pedro Ramon"]
[Black "Stoleriu, George"]
[WhiteFideId "3901807"]
[BlackFideId "1227505"]
[WhiteElo "2354"]
[BlackElo "2287"]
[Result "0-1"]
[Round "07"]
[TimeControl "180+1"]
[Date "2022.12.07"]
[WhiteClock "0:00:03"]
[BlackClock "0:00:57"]

1. f4 {[%clk 0:03:00]}  Nh6 {[%clk 0:02:49]} 2. e4 {[%clk 0:03:00]}  d5 {[%clk 0:02:49]} 3. exd5 {[%clk 0:02:58]}  c6 {[%clk 0:02:45]} 4. dxc6 {[%clk 0:02:53]}  Nxc6 {[%clk 0:02:46]} 5. Nf3 {[%clk 0:02:53]}  g6 {[%clk 0:02:44]} 6. d4 {[%clk 0:02:53]}  Bg7 {[%clk 0:02:43]} 7. c3 {[%clk 0:02:53]}  O-O {[%clk 0:02:42]} 8. Be2 {[%clk 0:02:53]}  Be6 {[%clk 0:02:40]} 9. O-O {[%clk 0:02:53]}  Rc8 {[%clk 0:02:37]} 10. Ne5 {[%clk 0:02:46]}  Bd5 {[%clk 0:02:29]} 11. Bf3 {[%clk 0:02:45]}  Nf5 {[%clk 0:02:28]} 12. Bxd5 {[%clk 0:02:41]}  Qxd5 {[%clk 0:02:29]} 13. Qf3 {[%clk 0:02:41]}  Qxf3 {[%clk 0:02:25]} 14. Nxf3 {[%clk 0:02:33]}  Rfd8 {[%clk 0:02:24]} 15. Na3 {[%clk 0:02:28]}  f6 {[%clk 0:02:22]} 16. g4 {[%clk 0:02:24]}  Nd6 {[%clk 0:02:20]} 17. Re1 {[%clk 0:02:19]}  Re8 {[%clk 0:02:17]} 18. Bd2 {[%clk 0:02:11]}  e5 {[%clk 0:02:14]} 19. fxe5 {[%clk 0:02:10]}  fxe5 {[%clk 0:02:15]} 20. dxe5 {[%clk 0:02:04]}  Nxe5 {[%clk 0:02:14]} 21. Nxe5 {[%clk 0:02:03]}  Bxe5 {[%clk 0:02:12]} 22. Kg2 {[%clk 0:01:59]}  b5 {[%clk 0:02:01]} 23. Nc2 {[%clk 0:01:08]}  Nc4 {[%clk 0:02:00]} 24. Re2 {[%clk 0:00:57]}  Bxh2 {[%clk 0:01:53]} 25. Rae1 {[%clk 0:00:42]}  Rxe2+ {[%clk 0:01:29]} 26. Rxe2 {[%clk 0:00:43]}  Bd6 {[%clk 0:01:29]} 27. Bc1 {[%clk 0:00:43]}  Kf7 {[%clk 0:01:20]} 28. a3 {[%clk 0:00:41]}  Re8 {[%clk 0:01:16]} 29. Rf2+ {[%clk 0:00:35]}  Ke6 {[%clk 0:01:16]} 30. Nd4+ {[%clk 0:00:35]}  Kd5 {[%clk 0:01:16]} 31. Nxb5 {[%clk 0:00:26]}  Bc5 {[%clk 0:01:16]} 32. Rc2 {[%clk 0:00:22]}  Re1 {[%clk 0:01:06]} 33. b3 {[%clk 0:00:19]}  Ne5 {[%clk 0:01:02]} 34. c4+ {[%clk 0:00:18]}  Ke4 {[%clk 0:00:59]} 35. Nc3+ {[%clk 0:00:13]}  Kd3 {[%clk 0:00:59]} 36. Bd2 {[%clk 0:00:03]}  Rg1+ {[%clk 0:00:57]} 37. Kh2 {[%clk 0:00:03]}  Kxc2 {[%clk 0:00:57]} 0-1


[Site "https://www.chess.com"]

[Event "Titled Tuesday Blitz December 06 Late 2022"]
[White "Mazurkiewicz, Michal"]
[Black "Adewumi, Tanitoluwa"]
[WhiteFideId "1124943"]
[BlackFideId "30966396"]
[WhiteElo "2081"]
[BlackElo "2521"]
[Result "1-0"]
[Round "07"]
[TimeControl "180+1"]
[Date "2022.12.07"]
[WhiteClock "0:00:20"]
[BlackClock "0:00:01"]

1. e4 {[%clk 0:03:00]}  c5 {[%clk 0:02:53]} 2. Nf3 {[%clk 0:03:00]}  e6 {[%clk 0:02:32]} 3. d3 {[%clk 0:02:59]}  Nc6 {[%clk 0:02:15]} 4. g3 {[%clk 0:02:59]}  Nf6 {[%clk 0:02:04]} 5. Bg2 {[%clk 0:02:56]}  d5 {[%clk 0:02:03]} 6. Nbd2 {[%clk 0:02:55]}  Be7 {[%clk 0:01:58]} 7. O-O {[%clk 0:02:55]}  b6 {[%clk 0:01:56]} 8. Re1 {[%clk 0:02:55]}  Bb7 {[%clk 0:01:51]} 9. c3 {[%clk 0:02:55]}  Qc7 {[%clk 0:01:46]} 10. a3 {[%clk 0:02:55]}  h6 {[%clk 0:01:24]} 11. h4 {[%clk 0:02:52]}  a5 {[%clk 0:01:20]} 12. exd5 {[%clk 0:02:47]}  exd5 {[%clk 0:01:00]} 13. Nf1 {[%clk 0:02:39]}  O-O {[%clk 0:00:46]} 14. Bf4 {[%clk 0:02:39]}  Bd6 {[%clk 0:00:46]} 15. Bxd6 {[%clk 0:02:34]}  Qxd6 {[%clk 0:00:46]} 16. Ne3 {[%clk 0:02:34]}  Qd7 {[%clk 0:00:41]} 17. Qb3 {[%clk 0:02:33]}  d4 {[%clk 0:00:33]} 18. Nc4 {[%clk 0:02:23]}  a4 {[%clk 0:00:28]} 19. Qxb6 {[%clk 0:02:23]}  dxc3 {[%clk 0:00:28]} 20. Nce5 {[%clk 0:02:23]}  Qc8 {[%clk 0:00:20]} 21. bxc3 {[%clk 0:02:18]}  Nxe5 {[%clk 0:00:13]} 22. Nxe5 {[%clk 0:02:18]}  Bxg2 {[%clk 0:00:14]} 23. Kxg2 {[%clk 0:02:18]}  Nd5 {[%clk 0:00:14]} 24. Qb2 {[%clk 0:01:57]}  Qf5 {[%clk 0:00:14]} 25. c4 {[%clk 0:01:45]}  Nf6 {[%clk 0:00:12]} 26. Qe2 {[%clk 0:01:36]}  Rfe8 {[%clk 0:00:12]} 27. Qf3 {[%clk 0:01:37]}  Qe6 {[%clk 0:00:09]} 28. Rab1 {[%clk 0:00:58]}  Qd6 {[%clk 0:00:05]} 29. Qc6 {[%clk 0:00:48]}  Qd4 {[%clk 0:00:03]} 30. Nf3 {[%clk 0:00:41]}  Qxd3 {[%clk 0:00:03]} 31. Qxc5 {[%clk 0:00:36]}  Rxe1 {[%clk 0:00:02]} 32. Rxe1 {[%clk 0:00:34]}  Rd8 {[%clk 0:00:02]} 33. Qc6 {[%clk 0:00:27]}  Rd6 {[%clk 0:00:01]} 34. Qxa4 {[%clk 0:00:20]} 1-0


[Site "https://www.chess.com"]

[Event "Titled Tuesday Blitz December 06 Late 2022"]
[White "Melikyan, Gnel"]
[Black "Tanenbaum, Zachary"]
[WhiteFideId "54109990"]
[BlackFideId "2060850"]
[WhiteElo "2138"]
[BlackElo "2175"]
[Result "1/2-1/2"]
[Round "07"]
[TimeControl "180+1"]
[Date "2022.12.06"]
[WhiteClock "0:00:06"]
[BlackClock "0:00:02"]

1. d4 {[%clk 0:02:59]}  d5 {[%clk 0:02:59]} 2. c4 {[%clk 0:02:55]}  dxc4 {[%clk 0:03:00]} 3. e3 {[%clk 0:02:56]}  e5 {[%clk 0:03:00]} 4. Bxc4 {[%clk 0:02:56]}  Nc6 {[%clk 0:03:00]} 5. Ne2 {[%clk 0:02:51]}  exd4 {[%clk 0:02:56]} 6. Nxd4 {[%clk 0:02:47]}  Nxd4 {[%clk 0:02:46]} 7. Qxd4 {[%clk 0:02:47]}  Qxd4 {[%clk 0:02:37]} 8. exd4 {[%clk 0:02:48]}  Bb4+ {[%clk 0:02:36]} 9. Bd2 {[%clk 0:02:44]}  Bxd2+ {[%clk 0:02:36]} 10. Kxd2 {[%clk 0:02:45]}  Be6 {[%clk 0:02:14]} 11. Re1 {[%clk 0:02:34]}  O-O-O {[%clk 0:02:14]} 12. Bxe6+ {[%clk 0:02:30]}  fxe6 {[%clk 0:02:15]} 13. Rxe6 {[%clk 0:01:52]}  Rxd4+ {[%clk 0:02:14]} 14. Kc3 {[%clk 0:01:52]}  Rd1 {[%clk 0:02:04]} 15. Re8+ {[%clk 0:01:52]}  Rd8 {[%clk 0:02:00]} 16. Rxd8+ {[%clk 0:01:53]}  Kxd8 {[%clk 0:02:01]} 17. Nd2 {[%clk 0:01:52]}  Nf6 {[%clk 0:02:00]} 18. Nc4 {[%clk 0:01:47]}  Ne4+ {[%clk 0:01:51]} 19. Kd4 {[%clk 0:01:41]}  Nxf2 {[%clk 0:01:51]} 20. Rf1 {[%clk 0:01:33]}  Ng4 {[%clk 0:01:50]} 21. Rf7 {[%clk 0:01:33]}  Nh6 {[%clk 0:01:49]} 22. Ne5 {[%clk 0:01:27]}  Re8 {[%clk 0:01:01]} 23. Rf3 {[%clk 0:01:20]}  Ke7 {[%clk 0:00:59]} 24. g4 {[%clk 0:01:13]}  Rd8+ {[%clk 0:00:52]} 25. Ke4 {[%clk 0:01:11]}  Rf8 {[%clk 0:00:51]} 26. Rc3 {[%clk 0:01:08]}  Kd6 {[%clk 0:00:32]} 27. Rd3+ {[%clk 0:01:00]}  Ke6 {[%clk 0:00:31]} 28. Rc3 {[%clk 0:00:58]}  Nf7 {[%clk 0:00:28]} 29. Nxf7 {[%clk 0:00:47]}  Rxf7 {[%clk 0:00:29]} 30. h4 {[%clk 0:00:43]}  c6 {[%clk 0:00:26]} 31. b4 {[%clk 0:00:41]}  Rf2 {[%clk 0:00:23]} 32. a3 {[%clk 0:00:39]}  g6 {[%clk 0:00:20]} 33. b5 {[%clk 0:00:23]}  Kd6 {[%clk 0:00:17]} 34. bxc6 {[%clk 0:00:22]}  bxc6 {[%clk 0:00:17]} 35. Rd3+ {[%clk 0:00:23]}  Kc7 {[%clk 0:00:18]} 36. Rh3 {[%clk 0:00:16]}  Rg2 {[%clk 0:00:16]} 37. g5 {[%clk 0:00:14]}  Rd2 {[%clk 0:00:14]} 38. Ke5 {[%clk 0:00:14]}  Rf2 {[%clk 0:00:13]} 39. Ke6 {[%clk 0:00:15]}  Rf4 {[%clk 0:00:10]} 40. h5 {[%clk 0:00:14]}  c5 {[%clk 0:00:08]} 41. hxg6 {[%clk 0:00:14]}  hxg6 {[%clk 0:00:08]} 42. Rh7+ {[%clk 0:00:14]}  Kb6 {[%clk 0:00:07]} 43. Rg7 {[%clk 0:00:15]}  Rf3 {[%clk 0:00:07]} 44. Rxg6 {[%clk 0:00:14]}  Rxa3 {[%clk 0:00:06]} 45. Kd5+ {[%clk 0:00:14]}  Kb5 {[%clk 0:00:07]} 46. Rg7 {[%clk 0:00:15]}  Rg3 {[%clk 0:00:06]} 47. Rb7+ {[%clk 0:00:05]}  Ka6 {[%clk 0:00:05]} 48. Rg7 {[%clk 0:00:05]}  Kb6 {[%clk 0:00:05]} 49. g6 {[%clk 0:00:05]}  Rg5+ {[%clk 0:00:04]} 50. Kc4 {[%clk 0:00:06]}  Rg4+ {[%clk 0:00:04]} 51. Kd5 {[%clk 0:00:04]}  a5 {[%clk 0:00:04]} 52. Rg8 {[%clk 0:00:05]}  a4 {[%clk 0:00:03]} 53. g7 {[%clk 0:00:04]}  Rg5+ {[%clk 0:00:04]} 54. Kc4 {[%clk 0:00:05]}  Kb7 {[%clk 0:00:02]} 55. Kb5 {[%clk 0:00:02]}  a3 {[%clk 0:00:02]} 56. Re8 {[%clk 0:00:02]}  Rxg7 {[%clk 0:00:02]} 57. Re3 {[%clk 0:00:03]}  a2 {[%clk 0:00:01]} 58. Ra3 {[%clk 0:00:03]}  Rc7 {[%clk 0:00:01]} 59. Rxa2 {[%clk 0:00:03]}  c4 {[%clk 0:00:02]} 60. Rc2 {[%clk 0:00:04]}  c3 {[%clk 0:00:01]} 61. Kb4 {[%clk 0:00:04]}  Kb6 {[%clk 0:00:02]} 62. Rxc3 {[%clk 0:00:05]}  Rxc3 {[%clk 0:00:02]} 63. Kxc3 {[%clk 0:00:06]} 1/2-1/2


[Site "https://www.chess.com"]

[Event "Titled Tuesday Blitz December 06 Late 2022"]
[White "Mendez Fortes, Eduardo Jesus"]
[Black "Rustemov, Alexander"]
[WhiteFideId "3502376"]
[BlackFideId "4119002"]
[WhiteElo "2307"]
[BlackElo "2796"]
[Result "1-0"]
[Round "07"]
[TimeControl "180+1"]
[Date "2022.12.06"]
[WhiteClock "0:00:38"]
[BlackClock "0:00:04"]

1. e4 {[%clk 0:03:00]}  e6 {[%clk 0:02:59]} 2. d4 {[%clk 0:03:00]}  d5 {[%clk 0:03:00]} 3. Nd2 {[%clk 0:03:00]}  dxe4 {[%clk 0:03:00]} 4. Nxe4 {[%clk 0:03:01]}  Bd7 {[%clk 0:03:00]} 5. Nf3 {[%clk 0:03:01]}  Bc6 {[%clk 0:03:01]} 6. Bd3 {[%clk 0:03:02]}  Nd7 {[%clk 0:03:01]} 7. Qe2 {[%clk 0:02:58]}  Ngf6 {[%clk 0:03:01]} 8. Neg5 {[%clk 0:02:53]}  Qe7 {[%clk 0:02:59]} 9. Ne5 {[%clk 0:02:47]}  Nxe5 {[%clk 0:02:59]} 10. dxe5 {[%clk 0:02:48]}  Nd7 {[%clk 0:03:00]} 11. O-O {[%clk 0:02:43]}  h6 {[%clk 0:02:59]} 12. Nf3 {[%clk 0:02:39]}  Qb4 {[%clk 0:02:59]} 13. c3 {[%clk 0:02:31]}  Qg4 {[%clk 0:02:58]} 14. Re1 {[%clk 0:02:26]}  O-O-O {[%clk 0:02:40]} 15. Be4 {[%clk 0:02:11]}  Bxe4 {[%clk 0:02:35]} 16. Qxe4 {[%clk 0:02:11]}  Qxe4 {[%clk 0:02:33]} 17. Rxe4 {[%clk 0:02:12]}  Nc5 {[%clk 0:02:28]} 18. Re1 {[%clk 0:02:10]}  Nd3 {[%clk 0:02:26]} 19. Re2 {[%clk 0:02:10]}  Bc5 {[%clk 0:02:17]} 20. Kf1 {[%clk 0:01:49]}  Rd7 {[%clk 0:02:15]} 21. b4 {[%clk 0:01:41]}  Bb6 {[%clk 0:02:12]} 22. Ba3 {[%clk 0:01:36]}  Rhd8 {[%clk 0:01:57]} 23. g3 {[%clk 0:01:32]}  a5 {[%clk 0:01:42]} 24. Kg2 {[%clk 0:01:20]}  Nxf2 {[%clk 0:01:25]} 25. Rxf2 {[%clk 0:01:19]}  Bxf2 {[%clk 0:01:26]} 26. Kxf2 {[%clk 0:01:20]}  Rd1 {[%clk 0:01:24]} 27. Rxd1 {[%clk 0:01:20]}  Rxd1 {[%clk 0:01:25]} 28. bxa5 {[%clk 0:01:20]}  Ra1 {[%clk 0:01:23]} 29. Bb4 {[%clk 0:01:20]}  Rxa2+ {[%clk 0:01:23]} 30. Ke3 {[%clk 0:01:20]}  Kd7 {[%clk 0:01:12]} 31. Bf8 {[%clk 0:01:16]}  Rxa5 {[%clk 0:01:07]} 32. Bxg7 {[%clk 0:01:15]}  h5 {[%clk 0:01:07]} 33. Bf6 {[%clk 0:01:10]}  Ra2 {[%clk 0:01:03]} 34. h3 {[%clk 0:01:06]}  Rg2 {[%clk 0:01:01]} 35. Bh4 {[%clk 0:01:06]}  c5 {[%clk 0:00:57]} 36. Ng5 {[%clk 0:01:05]}  b5 {[%clk 0:00:57]} 37. Ne4 {[%clk 0:01:02]}  Kc6 {[%clk 0:00:56]} 38. Be7 {[%clk 0:01:01]}  Kd5 {[%clk 0:00:45]} 39. Bxc5 {[%clk 0:00:50]}  Kxe5 {[%clk 0:00:44]} 40. Bd4+ {[%clk 0:00:50]}  Kd5 {[%clk 0:00:44]} 41. Nf6+ {[%clk 0:00:50]}  Kc4 {[%clk 0:00:44]} 42. Nxh5 {[%clk 0:00:47]}  Rg1 {[%clk 0:00:24]} 43. Nf4 {[%clk 0:00:42]}  e5 {[%clk 0:00:21]} 44. Bxe5 {[%clk 0:00:41]}  Rxg3+ {[%clk 0:00:16]} 45. Ke4 {[%clk 0:00:39]}  b4 {[%clk 0:00:07]} 46. cxb4 {[%clk 0:00:39]}  Kxb4 {[%clk 0:00:07]} 47. Nd5+ {[%clk 0:00:39]}  Kc4 {[%clk 0:00:01]} 48. Bxg3 {[%clk 0:00:40]}  f5+ {[%clk 0:00:01]} 49. Kxf5 {[%clk 0:00:39]}  Kxd5 {[%clk 0:00:02]} 50. h4 {[%clk 0:00:40]}  Kc6 {[%clk 0:00:02]} 51. h5 {[%clk 0:00:40]}  Kd7 {[%clk 0:00:03]} 52. h6 {[%clk 0:00:40]}  Ke8 {[%clk 0:00:04]} 53. h7 {[%clk 0:00:40]}  Kf7 {[%clk 0:00:04]} 54. h8=Q {[%clk 0:00:40]}  Ke7 {[%clk 0:00:04]} 55. Qf6+ {[%clk 0:00:40]}  Kd7 {[%clk 0:00:04]} 56. Qe6+ {[%clk 0:00:38]} 1-0


[Site "https://www.chess.com"]

[Event "Titled Tuesday Blitz December 06 Late 2022"]
[White "Nazari, Arad"]
[Black "Yurasova, Daria"]
[WhiteFideId "12577324"]
[BlackFideId "34146919"]
[WhiteElo "2264"]
[BlackElo "2098"]
[Result "0-1"]
[Round "07"]
[TimeControl "180+1"]
[Date "2022.12.06"]
[WhiteClock "0:00:01"]
[BlackClock "0:00:05"]

1. e4 {[%clk 0:03:00]}  e5 {[%clk 0:03:00]} 2. f4 {[%clk 0:03:00]}  exf4 {[%clk 0:02:58]} 3. Nf3 {[%clk 0:03:01]}  g5 {[%clk 0:02:57]} 4. h4 {[%clk 0:03:00]}  g4 {[%clk 0:02:54]} 5. Ne5 {[%clk 0:03:01]}  d6 {[%clk 0:02:50]} 6. Nxg4 {[%clk 0:03:01]}  Nf6 {[%clk 0:02:50]} 7. Nf2 {[%clk 0:02:56]}  Rg8 {[%clk 0:02:49]} 8. d4 {[%clk 0:02:48]}  Bh6 {[%clk 0:02:48]} 9. Bb5+ {[%clk 0:02:23]}  c6 {[%clk 0:02:44]} 10. Be2 {[%clk 0:02:22]}  Rxg2 {[%clk 0:02:36]} 11. Bf3 {[%clk 0:02:22]}  Rg3 {[%clk 0:02:34]} 12. Qe2 {[%clk 0:02:16]}  Qe7 {[%clk 0:02:33]} 13. Nc3 {[%clk 0:02:16]}  b6 {[%clk 0:02:00]} 14. Bd2 {[%clk 0:02:04]}  Ba6 {[%clk 0:01:59]} 15. Nd3 {[%clk 0:02:04]}  Nbd7 {[%clk 0:01:52]} 16. O-O-O {[%clk 0:01:58]}  O-O-O {[%clk 0:01:52]} 17. Rde1 {[%clk 0:01:45]}  Bb7 {[%clk 0:01:43]} 18. Nxf4 {[%clk 0:01:29]}  Rdg8 {[%clk 0:01:30]} 19. Kb1 {[%clk 0:01:23]}  Kb8 {[%clk 0:01:22]} 20. Bc1 {[%clk 0:01:18]}  Re8 {[%clk 0:01:05]} 21. Qf2 {[%clk 0:01:10]}  Rgg8 {[%clk 0:01:01]} 22. Nd3 {[%clk 0:01:04]}  Bxc1 {[%clk 0:00:58]} 23. Nxc1 {[%clk 0:01:04]}  Ng4 {[%clk 0:00:55]} 24. Qd2 {[%clk 0:01:00]}  h5 {[%clk 0:00:50]} 25. Nd3 {[%clk 0:00:57]}  Qf6 {[%clk 0:00:46]} 26. Qf4 {[%clk 0:00:53]}  Qxd4 {[%clk 0:00:34]} 27. Bxg4 {[%clk 0:00:49]}  hxg4 {[%clk 0:00:31]} 28. Qxf7 {[%clk 0:00:49]}  Ne5 {[%clk 0:00:26]} 29. Nxe5 {[%clk 0:00:49]}  Qxe5 {[%clk 0:00:27]} 30. Rhf1 {[%clk 0:00:42]}  g3 {[%clk 0:00:24]} 31. a3 {[%clk 0:00:34]}  g2 {[%clk 0:00:21]} 32. Rg1 {[%clk 0:00:35]}  Qg3 {[%clk 0:00:22]} 33. h5 {[%clk 0:00:21]}  Ref8 {[%clk 0:00:20]} 34. Qh7 {[%clk 0:00:19]}  Rg7 {[%clk 0:00:18]} 35. Qh6 {[%clk 0:00:19]}  Rgf7 {[%clk 0:00:11]} 36. e5 {[%clk 0:00:14]}  Rf1 {[%clk 0:00:08]} 37. Qxd6+ {[%clk 0:00:13]}  Ka8 {[%clk 0:00:09]} 38. Qd1 {[%clk 0:00:11]}  Rxe1 {[%clk 0:00:07]} 39. Rxe1 {[%clk 0:00:11]}  a5 {[%clk 0:00:05]} 40. e6 {[%clk 0:00:09]}  Qxe1 {[%clk 0:00:05]} 41. Qxe1 {[%clk 0:00:09]}  Rf1 {[%clk 0:00:05]} 42. Qd1 {[%clk 0:00:01]}  Rxd1+ {[%clk 0:00:05]} 0-1


[Site "https://www.chess.com"]

[Event "Titled Tuesday Blitz December 06 Late 2022"]
[White "Nepo"]
[Black "Gerbelli Neto, Eduardo"]
[BlackFideId "2103281"]
[WhiteElo "2201"]
[BlackElo "2178"]
[Result "0-1"]
[Round "07"]
[TimeControl "180+1"]
[Date "2022.12.07"]
[WhiteClock "0:00:46"]
[BlackClock "0:00:28"]

1. e4 {[%clk 0:03:00]}  e5 {[%clk 0:02:59]} 2. Nf3 {[%clk 0:02:55]}  Nc6 {[%clk 0:02:59]} 3. Bb5 {[%clk 0:02:54]}  a6 {[%clk 0:02:59]} 4. Ba4 {[%clk 0:02:49]}  d6 {[%clk 0:02:56]} 5. O-O {[%clk 0:02:45]}  Bg4 {[%clk 0:02:55]} 6. h3 {[%clk 0:02:43]}  h5 {[%clk 0:02:54]} 7. c3 {[%clk 0:02:42]}  Qf6 {[%clk 0:02:53]} 8. d4 {[%clk 0:02:37]}  b5 {[%clk 0:02:43]} 9. d5 {[%clk 0:02:37]}  Bxf3 {[%clk 0:02:39]} 10. gxf3 {[%clk 0:02:30]}  Nce7 {[%clk 0:02:35]} 11. Bc2 {[%clk 0:02:27]}  Ng6 {[%clk 0:02:34]} 12. Be3 {[%clk 0:02:20]}  Nh4 {[%clk 0:02:32]} 13. Kh1 {[%clk 0:02:18]}  Nxf3 {[%clk 0:02:21]} 14. a4 {[%clk 0:02:15]}  Rb8 {[%clk 0:01:53]} 15. axb5 {[%clk 0:02:09]}  axb5 {[%clk 0:01:54]} 16. Ba7 {[%clk 0:02:09]}  Rb7 {[%clk 0:01:46]} 17. Be3 {[%clk 0:02:08]}  g5 {[%clk 0:01:21]} 18. Ra8+ {[%clk 0:02:04]}  Ke7 {[%clk 0:01:22]} 19. c4 {[%clk 0:01:36]}  g4 {[%clk 0:01:20]} 20. cxb5 {[%clk 0:01:36]}  Bh6 {[%clk 0:01:08]} 21. Nd2 {[%clk 0:01:25]}  Nxd2 {[%clk 0:00:54]} 22. Bxd2 {[%clk 0:01:18]}  Bxd2 {[%clk 0:00:51]} 23. b6 {[%clk 0:01:14]}  Bf4 {[%clk 0:00:44]} 24. Ba4 {[%clk 0:01:08]}  Qh4 {[%clk 0:00:43]} 25. Re8+ {[%clk 0:01:07]}  Kf6 {[%clk 0:00:43]} 26. Qd3 {[%clk 0:01:06]}  Rxb6 {[%clk 0:00:34]} 27. Bd7 {[%clk 0:00:46]}  Rxb2 {[%clk 0:00:28]} 0-1


[Site "https://www.chess.com"]